bitfinex-derivatives/quotes_SOLF0:USTF0_20241009
["timestamp","ask_amount","ask_price","bid_price","bid_amount"]
[1728488023917,0.12502,142.97,142.9,5.54]
[1728488024118,0.12502,142.97,142.91,5.54]
[1728488024315,0.12502,142.97,142.93,3.5007]
[1728488024511,0.12502,142.97,142.91,5.54]
[1728488025519,3.62492,142.97,142.94,3.5005]
[1728488026816,3.5001,142.96,142.93,3.5006]
[1728488027021,0.12502,142.97,142.91,5.54]
[1728488027522,3.62502,142.97,142.94,3.5005]
[1728488027715,16.92502,142.97,142.91,5.54]
[1728488028015,16.92502,142.97,142.92,3.5009]
[1728488028016,3.5003,142.95,142.92,3.5009]
[1728488028419,16.92502,142.97,142.9,5.54]
[1728488028620,3.5001,142.96,142.93,3.5006]
[1728488028810,20.354484,142.97,142.9,5.54]
[1728488029017,23.854384,142.97,142.94,3.5004]
[1728488029219,20.354484,142.97,142.94,3.5004]
[1728488030419,3.5002,142.96,142.94,3.5004]
[1728488030819,20.354484,142.97,142.9,5.54]
[1728488031017,20.354484,142.97,142.92,3.5009]
[1728488031516,3.5004,142.95,142.93,3.5008]
[1728488032222,3.5004,142.95,142.87,18.1637]
[1728488032223,182.6454,142.88,142.78,5.42762]
[1728488032424,16.8,142.81,142.71,16.8]
[1728488032724,6.5,142.8,142.72,1.3408]
[1728488032919,6.5,142.79,142.72,1.3408]
[1728488033309,6.5,142.79,142.72,2.6666]
[1728488034024,23.3,142.79,142.72,2.6666]
[1728488034822,20.3043,142.79,142.72,2.6666]
[1728488035023,6.5,142.78,142.72,2.6666]
[1728488035225,6.5,142.79,142.72,2.6666]
[1728488035426,6.62502,142.79,142.72,2.6666]
[1728488036017,0.12502,142.79,142.72,2.6666]
[1728488036320,0.12502,142.79,142.73,3.5057]
[1728488036815,3.62932,142.79,142.73,3.5057]
[1728488037215,3.62932,142.79,142.72,2.6666]
[1728488037216,16.8,142.78,142.72,2.6666]
[1728488037821,3.5047,142.77,142.72,2.6666]
[1728488039115,16.8,142.78,142.72,2.6666]
[1728488039729,3.5047,142.77,142.72,2.6666]
[1728488040419,3.5047,142.77,142.72,6.1725]
[1728488041130,16.8,142.78,142.72,2.6666]
[1728488041321,16.8,142.78,142.73,3.5055]
[1728488041928,20.3045,142.78,142.73,3.5055]
[1728488042143,16.8,142.77,142.72,2.6666]
[1728488042329,3.505,142.76,142.72,2.6666]
[1728488043133,3.5047,142.77,142.72,2.6666]
[1728488043426,16.8,142.78,142.72,2.6666]
[1728488043635,23.3,142.78,142.73,3.5057]
[1728488043928,26.8046,142.78,142.73,3.5057]
[1728488044128,23.3,142.78,142.73,3.5057]
[1728488044337,3.5047,142.77,142.72,6.1724]
[1728488044829,23.3,142.78,142.72,2.6666]
[1728488045028,3.5048,142.77,142.72,6.1725]
[1728488045328,16.8,142.78,142.72,2.6666]
[1728488045719,16.8,142.74,142.72,1.3408]
[1728488045923,16.8,142.73,142.67,0.12502]
[1728488046124,3.506,142.72,142.67,5.04712]
[1728488046327,3.506,142.72,142.67,1.54002]
[1728488046533,6.9494987,142.72,142.67,1.54002]
[1728488046726,26.8058,142.73,142.67,5.04702]
[1728488047128,23.3,142.73,142.67,1.54002]
[1728488047325,3.5063,142.71,142.67,1.54002]
[1728488047630,16.8,142.71,142.67,1.54002]
[1728488048434,16.8,142.71,142.67,0.12502]
[1728488049635,23.3,142.73,142.67,0.12502]
[1728488049932,20.3063,142.71,142.67,0.12502]
[1728488050124,26.8063,142.71,142.67,0.12502]
[1728488050632,16.8,142.71,142.67,0.12502]
[1728488050833,0.2904,142.77,142.67,0.12502]
[1728488051031,23.3,142.76,142.67,0.12502]
[1728488051336,16.8,142.76,142.72,3.5058]
[1728488051525,6.5,142.75,142.72,3.5058]
[1728488051828,16.8,142.77,142.69,1.3802]
[1728488052029,6.5,142.76,142.73,3.5057]
[1728488052230,6.5,142.76,142.69,1.3802]
[1728488052424,6.5,142.76,142.73,3.5055]
[1728488053926,23.3,142.77,142.74,3.5054]
[1728488054228,23.3,142.77,142.69,1.3802]
[1728488054934,23.3,142.77,142.68,16.8]
[1728488054935,16.8,142.75,142.67,0.12502]
[1728488055233,16.8,142.75,142.71,3.5061]
[1728488055834,20.3052,142.75,142.71,3.5061]
[1728488056031,16.8,142.75,142.67,16.92502]
[1728488056332,16.8,142.77,142.69,16.8]
[1728488056532,23.3,142.77,142.69,16.8]
[1728488057129,23.3,142.77,142.73,3.5055]
[1728488057736,23.3,142.77,142.69,16.8]
[1728488057936,26.8049,142.77,142.72,3.5058]
[1728488058138,6.5,142.77,142.67,23.42502]
[1728488058334,10.0048,142.77,142.73,3.5056]
[1728488059834,6.5,142.77,142.67,23.42502]
[1728488060141,6.5,142.77,142.67,6.62502]
[1728488060142,16.8,142.76,142.67,6.62502]
[1728488060434,16.8,142.76,142.67,0.12502]
[1728488061929,20.3051,142.76,142.72,3.5059]
[1728488062539,3.5052,142.75,142.72,3.5059]
[1728488064036,6.5,142.77,142.69,3.5066]
[1728488064037,16.8,142.74,142.69,3.5066]
[1728488064238,16.8,142.71,142.67,0.12502]
[1728488064444,20.3064,142.71,142.68,3.5067]
[1728488064633,20.3064,142.71,142.67,0.12502]
[1728488065137,3.5065,142.7,142.67,0.12502]
[1728488065633,16.8,142.71,142.67,0.12502]
[1728488065850,10.07961685,142.72,142.67,0.12502]
[1728488065851,20.3068,142.69,142.67,0.12502]
[1728488066835,16.8,142.69,142.67,0.12502]
[1728488068435,20.3068,142.69,142.67,0.12502]
[1728488069239,16.8,142.69,142.67,0.12502]
[1728488069843,16.8,142.69,142.67,3.63202]
[1728488070746,20.3067,142.69,142.67,3.63212]
[1728488070940,16.8,142.69,142.67,3.63212]
[1728488073749,16.8,142.69,142.68,3.5069]
[1728488074248,16.8,142.69,142.67,3.63212]
[1728488074446,16.8,142.69,142.67,0.12502]
[1728488075248,6.54,142.68,142.67,0.12502]
[1728488076746,6.54,142.68,142.67,3.63222]
[1728488077046,23.34,142.71,142.67,0.12502]
[1728488077245,23.34,142.71,142.68,3.5067]
[1728488077452,23.34,142.71,142.67,0.12502]
[1728488077654,26.93366822,142.71,142.67,0.12502]
[1728488077948,26.93366822,142.71,142.68,3.5069]
[1728488078151,26.93366822,142.71,142.67,0.12502]
[1728488078354,20.39366822,142.71,142.67,0.12502]
[1728488078554,30.43986822,142.71,142.67,0.12502]
[1728488079352,30.43986822,142.71,142.68,3.5069]
[1728488079656,30.43996822,142.71,142.68,3.5069]
[1728488080049,30.43996822,142.71,142.68,3.5068]
[1728488080252,16.8,142.69,142.68,3.5068]
[1728488081455,16.8,142.69,142.67,0.12502]
[1728488081658,16.8,142.69,142.67,3.63202]
[1728488081854,16.8,142.69,142.67,0.12502]
[1728488083156,3.5069,142.68,142.67,0.12502]
[1728488085349,20.3069,142.68,142.67,0.12502]
[1728488085549,20.3069,142.68,142.66,2.0]
[1728488085550,16.8,142.68,142.66,2.0]
[1728488085855,3.5072,142.67,142.66,2.0]
[1728488086060,10.0472,142.67,142.66,2.0]
[1728488087048,3.5076,142.66,142.61,1.44912]
[1728488087361,6.54,142.67,142.61,0.12502]
[1728488087362,16.8,142.65,142.61,0.12502]
[1728488087559,20.3078,142.65,142.61,0.12502]
[1728488088162,20.3078,142.65,142.62,3.5084]
[1728488088358,3.508,142.64,142.61,0.12502]
[1728488088662,6.54,142.63,142.61,3.63352]
[1728488089057,10.01175906,142.63,142.61,3.63352]
[1728488089360,13.51995906,142.63,142.61,3.63352]
[1728488089555,10.01175906,142.63,142.61,3.63352]
[1728488090354,26.81175906,142.63,142.61,0.12502]
[1728488090554,26.81175906,142.63,142.61,3.63362]
[1728488091063,30.32005906,142.63,142.61,0.12502]
[1728488091257,26.81175906,142.63,142.61,0.12502]
[1728488091561,30.31995906,142.63,142.61,0.12502]
[1728488092567,30.31995906,142.63,142.61,3.63362]
[1728488093271,20.27175906,142.63,142.61,0.12502]
[1728488093472,23.04,142.63,142.62,3.5084]
[1728488093970,26.48747149,142.63,142.61,0.12502]
[1728488094364,29.99577149,142.63,142.61,0.12502]
[1728488096771,29.99577149,142.63,142.61,3.63362]
[1728488097173,26.48747149,142.63,142.61,3.63362]
[1728488097567,26.48747149,142.63,142.61,0.12502]
[1728488097774,29.99577149,142.63,142.61,0.12502]
[1728488098372,13.19577149,142.63,142.61,0.12502]
[1728488098676,10.78,142.62,142.61,0.12502]
[1728488099271,3.5087,142.61,142.56,2.6387]
[1728488099477,10.78,142.58,142.56,2.6387]
[1728488099778,10.78,142.58,142.57,3.5096]
[1728488101476,9.68747149,142.63,142.61,3.5086]
[1728488101669,10.78,142.63,142.58,10.78]
[1728488101873,10.78,142.63,142.59,1.3731]
[1728488102380,6.24,142.65,142.62,3.5084]
[1728488102577,10.78,142.63,142.55,0.12502]
[1728488102781,10.78,142.56,142.55,3.63512]
[1728488105778,10.78,142.56,142.55,0.12502]
[1728488106874,10.78,142.56,142.55,3.63512]
[1728488107081,10.78,142.56,142.55,0.12502]
[1728488108783,10.78,142.56,142.55,3.63512]
[1728488108975,10.78,142.56,142.55,0.12502]
[1728488109173,10.78,142.57,142.55,0.12502]
[1728488109390,10.78,142.56,142.55,0.12502]
[1728488111484,10.78,142.56,142.55,3.63512]
[1728488112384,6.24,142.62,142.55,0.12502]
[1728488112584,10.78,142.59,142.55,0.12502]
[1728488113184,10.78,142.58,142.55,0.12502]
[1728488113595,10.78,142.58,142.57,3.5096]
[1728488114789,6.24,142.62,142.6,3.5087]
[1728488114988,10.78,142.61,142.55,0.12502]
[1728488115183,10.78,142.58,142.55,0.12502]
[1728488115488,10.78,142.58,142.57,3.5096]
[1728488117590,3.57608456,142.63,142.55,10.90502]
[1728488117792,10.78,142.6,142.55,10.90502]
[1728488117987,10.78,142.62,142.56,10.78]
[1728488118293,7.02668203,142.63,142.59,3.5091]
[1728488118495,10.78,142.6,142.59,3.5091]
[1728488119387,10.78,142.61,142.6,3.5089]
[1728488119992,10.78,142.62,142.61,3.5086]
[1728488121693,10.78,142.62,142.55,0.12502]
[1728488121988,10.78,142.56,142.55,0.12502]
[1728488122390,10.78,142.56,142.49,6.40502]
[1728488122597,10.78,142.52,142.49,6.40502]
[1728488123502,10.78,142.52,142.51,3.5111]
[1728488124194,10.78,142.53,142.52,3.5107]
[1728488124394,16.86,142.55,142.52,3.5107]
[1728488124595,16.86,142.55,142.49,6.40502]
[1728488125192,16.86,142.57,142.49,6.40502]
[1728488125393,16.86,142.59,142.5,16.86]
[1728488125596,16.86,142.59,142.51,1.3425]
[1728488125997,16.86,142.59,142.57,3.5095]
[1728488126903,16.86,142.59,142.58,3.5094]
[1728488127297,23.26502,142.61,142.58,3.5094]
[1728488127598,16.98502,142.61,142.59,3.5091]
[1728488128400,16.98502,142.61,142.56,3.5097]
[1728488128601,16.98502,142.61,142.55,2.7639]
[1728488129097,0.12502,142.61,142.6,3.5089]
[1728488129500,16.98502,142.61,142.55,6.33070979]
[1728488129806,16.98502,142.61,142.55,2.7639]
[1728488130302,20.49372,142.61,142.57,3.5095]
[1728488130690,20.49372,142.61,142.55,2.7639]
[1728488130897,20.49372,142.61,142.57,3.5095]
[1728488131506,16.98502,142.61,142.55,2.7639]
[1728488131804,16.98502,142.61,142.59,3.5091]
[1728488136912,16.98502,142.61,142.57,3.5096]
[1728488137417,20.49382,142.61,142.58,3.5093]
[1728488137722,20.49382,142.61,142.53,7.648]
[1728488138807,20.49382,142.61,142.59,3.509]
[1728488139306,3.5092,142.59,142.57,3.5096]
[1728488139815,20.369,142.6,142.57,3.5096]
[1728488140114,16.86,142.6,142.57,3.5096]
[1728488140524,0.12502,142.61,142.53,16.86]
[1728488141115,0.12502,142.61,142.59,3.509]
[1728488141614,3.63382,142.61,142.59,3.509]
[1728488144515,0.12502,142.61,142.59,3.509]
[1728488144817,0.12502,142.61,142.58,3.5093]
[1728488145012,3.63392,142.61,142.58,3.5093]
[1728488145917,0.12502,142.61,142.59,3.509]
[1728488146511,0.12502,142.61,142.6,3.5089]
[1728488153926,10.90502,142.61,142.6,3.5089]
[1728488154113,0.12502,142.61,142.6,3.5089]
[1728488156221,10.90502,142.61,142.58,2.7586]
[1728488156425,14.41362,142.61,142.59,3.5091]
[1728488156625,10.90502,142.61,142.59,3.5091]
[1728488157224,10.90502,142.61,142.6,3.5089]
[1728488158027,0.12502,142.61,142.6,3.5089]
[1728488159431,0.12502,142.61,142.59,3.5091]
[1728488159628,0.12502,142.61,142.58,2.7586]
[1728488160030,0.12502,142.61,142.6,3.5089]
[1728488162830,0.12502,142.61,142.6,14.2889]
[1728488163034,0.12502,142.67,142.58,2.7586]
[1728488163035,0.12502,142.67,142.66,3.5074]
[1728488170127,10.90502,142.67,142.65,3.5076]
[1728488170322,10.78,142.66,142.65,3.5076]
[1728488170927,10.78,142.66,142.59,2.7284]
[1728488171140,10.78,142.63,142.6,6.02]
[1728488171324,10.78,142.61,142.59,2.7284]
[1728488171524,10.78,142.62,142.61,3.5086]
[1728488172136,14.2884,142.62,142.59,6.2374]
[1728488172338,10.78,142.61,142.59,2.7284]
[1728488172937,10.78,142.62,142.6,3.5087]
[1728488173232,0.12502,142.67,142.6,3.5087]
[1728488173432,10.78,142.62,142.61,3.5086]
[1728488175528,0.12502,142.67,142.63,3.5081]
[1728488175733,10.78,142.64,142.63,3.5081]
[1728488175937,0.12502,142.67,142.61,10.78]
[1728488176239,10.78,142.66,142.65,3.5077]
[1728488177233,0.12502,142.67,142.66,3.5074]
[1728488179633,0.12502,142.67,142.59,9.7463]
[1728488179833,10.78,142.64,142.63,3.508]
[1728488180237,10.78,142.65,142.6,6.02]
[1728488180533,10.78,142.65,142.61,3.5085]
[1728488180739,10.78,142.65,142.6,6.02]
[1728488181138,10.78,142.65,142.63,3.508]
[1728488182440,10.78,142.64,142.62,3.5083]
[1728488182644,10.78,142.64,142.6,6.02]
[1728488183031,10.78,142.65,142.63,3.508]
[1728488183235,10.78,142.65,142.6,16.8]
[1728488183535,0.12502,142.67,142.66,3.5074]
[1728488187044,0.12502,142.79,142.67,0.12502]
[1728488187235,3.55023947,142.79,142.71,16.83]
[1728488187435,3.5047,142.77,142.71,16.83]
[1728488187643,3.48028392,142.76,142.69,16.83]
[1728488187845,16.83,142.78,142.69,16.83]
[1728488188043,3.5051,142.76,142.69,16.83]
[1728488188241,6.93031947,142.76,142.69,16.83]
[1728488188643,0.12502,142.79,142.71,16.83]
[1728488188837,3.70596315,142.79,142.72,5.96]
[1728488189038,0.12502,142.79,142.76,3.5049]
[1728488189235,3.66527858,142.79,142.76,3.5049]
[1728488189434,3.5045,142.78,142.72,1.4378]
[1728488189638,3.5045,142.78,142.72,7.3978]
[1728488189941,3.5049,142.77,142.74,3.5053]
[1728488190640,0.12502,142.79,142.72,1.4378]
[1728488190841,0.12502,142.79,142.74,3.5054]
[1728488191046,0.12502,142.79,142.73,16.83]
[1728488191545,0.12502,142.79,142.77,3.5046]
[1728488191946,0.12502,142.79,142.73,16.83]
[1728488192146,0.12502,142.79,142.74,1.3176]
[1728488192347,0.12502,142.79,142.78,3.5045]
[1728488192938,0.12502,142.79,142.77,3.5046]
[1728488193540,0.12502,142.79,142.73,1.3862]
[1728488193746,16.83,142.78,142.72,1.4378]
[1728488193942,3.5051,142.76,142.72,1.4378]
[1728488194250,3.5051,142.76,142.73,3.5056]
[1728488195862,3.5048,142.77,142.74,3.5054]
[1728488196053,16.95502,142.79,142.72,1.4378]
[1728488196359,3.5047,142.78,142.74,3.5052]
[1728488196559,3.5047,142.78,142.72,1.4378]
[1728488196962,3.5047,142.78,142.75,3.505]
[1728488197161,16.95502,142.79,142.72,1.4378]
[1728488197362,0.12502,142.79,142.72,1.4378]
[1728488197761,3.62942,142.79,142.76,3.5048]
[1728488199752,0.12502,142.79,142.72,1.4378]
[1728488199962,0.12502,142.79,142.78,3.5045]
[1728488201763,20.45942,142.79,142.76,3.5048]
[1728488202060,16.95502,142.79,142.76,3.5048]
[1728488202358,20.45942,142.79,142.76,3.5048]
[1728488202566,16.95502,142.79,142.76,3.5048]
[1728488202754,16.95502,142.79,142.75,1.4235]
[1728488202953,16.95502,142.79,142.76,3.5049]
[1728488203266,20.45932,142.79,142.76,3.5049]
[1728488203766,20.45932,142.79,142.77,3.5047]
[1728488204559,16.95502,142.79,142.77,3.5047]
[1728488205960,20.45922,142.79,142.77,3.5047]
[1728488206859,20.45922,142.79,142.76,3.5048]
[1728488207064,16.83,142.78,142.72,7.3978]
[1728488207266,16.83,142.78,142.75,3.505]
[1728488207466,16.83,142.78,142.72,7.3978]
[1728488208067,16.83,142.75,142.72,1.4378]
[1728488208460,3.5058,142.73,142.7,3.5063]
[1728488208762,16.83,142.74,142.7,3.5063]
[1728488208976,20.41744816,142.74,142.7,3.5063]
[1728488209164,16.83,142.72,142.67,0.12502]
[1728488209571,3.5063,142.71,142.67,0.12502]
[1728488209869,3.5063,142.71,142.68,3.5068]
[1728488213969,3.5063,142.71,142.69,3.5066]
[1728488214172,3.5063,142.71,142.67,0.12502]
[1728488214371,3.5063,142.71,142.68,3.5068]
[1728488214561,3.5065,142.7,142.67,0.12502]
[1728488214964,16.83,142.72,142.68,3.5068]
[1728488215667,3.5064,142.71,142.68,3.5068]
[1728488217474,3.5064,142.7,142.68,3.5068]
[1728488217976,16.83,142.72,142.68,3.5068]
[1728488218272,3.5064,142.71,142.68,3.5068]
[1728488219475,16.83,142.72,142.69,3.5065]
[1728488219672,20.336,142.72,142.69,3.5065]
[1728488220573,20.336,142.72,142.67,0.12502]
[1728488220779,16.83,142.72,142.7,3.5063]
[1728488221276,22.79,142.74,142.67,0.12502]
[1728488221476,3.5057,142.73,142.71,3.506]
[1728488223068,16.83,142.72,142.67,0.12502]
[1728488223677,3.5066,142.7,142.67,3.63202]
[1728488223879,16.83,142.7,142.67,0.12502]
[1728488224570,16.83,142.69,142.67,0.12502]
[1728488224974,16.83,142.69,142.67,3.63202]
[1728488225873,16.83,142.7,142.67,0.12502]
[1728488226072,20.42096159,142.74,142.67,0.12502]
[1728488226272,29.98646159,142.74,142.67,0.12502]
[1728488226572,29.98646159,142.74,142.71,3.5061]
[1728488226770,3.5057,142.73,142.71,3.5061]
[1728488227374,3.5057,142.73,142.68,2.82]
[1728488227375,26.48096159,142.74,142.68,2.82]
[1728488227571,16.83,142.72,142.68,2.82]
[1728488227772,16.83,142.72,142.68,4.8861]
[1728488227969,3.5064,142.71,142.68,4.8861]
[1728488228276,16.83,142.72,142.68,4.8861]
[1728488228473,16.83,142.72,142.67,3.63202]
[1728488228676,16.83,142.72,142.67,0.12502]
[1728488228871,3.5061,142.72,142.7,3.5063]
[1728488229076,3.5061,142.72,142.67,0.12502]
[1728488229077,16.83,142.75,142.67,0.12502]
[1728488229575,3.5055,142.74,142.72,3.5058]
[1728488230575,7.06805652,142.74,142.72,3.5058]
[1728488230777,16.83,142.75,142.72,3.5058]
[1728488230978,3.5053,142.75,142.73,3.5057]
[1728488231677,3.5053,142.75,142.72,3.5058]
[1728488232179,3.5722255,142.74,142.72,3.5058]
[1728488232375,3.5722255,142.74,142.7,1.3578]
[1728488232588,16.83,142.73,142.69,3.5066]
[1728488232877,3.506,142.72,142.67,6.18502]
[1728488233079,16.83,142.73,142.67,6.18502]
[1728488234077,20.3357,142.73,142.71,3.506]
[1728488234272,16.83,142.75,142.67,6.18502]
[1728488234472,6.06,142.77,142.67,6.18502]
[1728488234673,16.83,142.76,142.67,6.18502]
[1728488234872,3.5054,142.75,142.73,3.5055]
[1728488235979,16.83,142.76,142.72,3.5058]
[1728488236179,3.5055,142.74,142.72,3.5058]
[1728488236675,6.98620805,142.74,142.72,3.5058]
[1728488236880,3.5055,142.74,142.72,3.5058]
[1728488237285,6.95570014,142.74,142.72,3.5058]
[1728488237485,3.45020014,142.74,142.67,6.18502]
[1728488237673,16.83,142.76,142.67,6.18502]
[1728488238081,3.5055,142.74,142.72,3.5058]
[1728488238284,6.93080287,142.74,142.72,3.5058]
[1728488238485,20.25530287,142.74,142.67,6.18502]
[1728488238879,3.5057,142.73,142.71,3.506]
[1728488239586,3.5062,142.71,142.69,3.5066]
[1728488239891,3.5062,142.71,142.67,0.12502]
[1728488240078,16.83,142.72,142.67,0.12502]
[1728488240280,3.5065,142.7,142.68,3.5068]
[1728488240481,3.5065,142.7,142.67,0.12502]
[1728488240482,16.83,142.69,142.67,0.12502]
[1728488240680,6.06,142.73,142.67,0.12502]
[1728488240681,20.3369,142.68,142.67,0.12502]
[1728488242691,3.5077,142.65,142.61,1.49952]
[1728488242888,16.83,142.68,142.63,3.508]
[1728488243392,3.5076,142.66,142.63,3.508]
[1728488244100,3.5076,142.66,142.61,1.49952]
[1728488244283,7.01783727,142.66,142.61,1.49952]
[1728488244483,3.5076,142.66,142.61,1.49952]
[1728488244684,3.5076,142.66,142.63,3.508]
[1728488244990,3.5081,142.64,142.61,1.49952]
[1728488245490,6.97478383,142.65,142.62,3.5083]
[1728488246292,3.5079,142.64,142.62,3.5083]
[1728488246586,9.36698383,142.65,142.61,1.49952]
[1728488246787,16.83,142.64,142.61,0.12502]
[1728488246984,3.5084,142.62,142.61,0.12502]
[1728488247382,20.3384,142.62,142.61,0.12502]
[1728488247582,20.3384,142.62,142.56,2.8894]
[1728488247583,16.83,142.62,142.56,2.8894]
[1728488247780,16.83,142.6,142.56,2.8894]
[1728488247991,20.3391,142.6,142.56,2.8894]
[1728488248191,16.83,142.6,142.56,2.8894]
[1728488248597,3.5093,142.59,142.56,6.3992]
[1728488248895,20.2559779,142.6,142.55,0.12502]
[1728488249084,16.83,142.58,142.55,0.12502]
[1728488249692,5.9,142.57,142.55,0.12502]
[1728488250089,3.4259779,142.6,142.55,0.12502]
[1728488250090,20.2559779,142.6,142.55,0.12502]
[1728488250291,5.9,142.6,142.57,3.5094]
[1728488250494,5.9,142.6,142.55,0.12502]
[1728488251099,20.3385,142.62,142.55,0.12502]
[1728488251297,5.9,142.62,142.55,0.12502]
[1728488252095,20.34582121,142.63,142.59,3.509]
[1728488252296,26.24582121,142.63,142.56,1.3681]
[1728488252595,16.83,142.62,142.57,3.5095]
[1728488253097,3.5087,142.61,142.57,3.5095]
[1728488253695,3.5087,142.61,142.56,1.3681]
[1728488253997,3.5087,142.61,142.58,3.5093]
[1728488254495,20.3385,142.62,142.59,3.5091]
[1728488254691,16.83,142.62,142.56,1.3681]
[1728488254889,3.5087,142.61,142.58,3.5092]
[1728488255392,20.3384,142.62,142.59,3.509]
[1728488255591,16.83,142.62,142.56,1.3681]
[1728488255892,3.5094,142.58,142.55,3.63502]
[1728488256294,16.83,142.59,142.55,0.12502]
[1728488256495,20.3393,142.59,142.56,3.5098]
[1728488256997,3.5093,142.59,142.56,3.5098]
[1728488257198,16.83,142.61,142.6,3.5089]
[1728488257397,16.83,142.61,142.55,0.12502]
[1728488257791,16.83,142.61,142.59,3.5091]
[1728488258196,20.34582121,142.63,142.55,0.12502]
[1728488258395,29.75422121,142.63,142.55,0.12502]
[1728488258997,3.5084,142.62,142.59,3.509]
[1728488259301,16.83,142.61,142.55,0.12502]
[1728488260396,3.509,142.6,142.55,0.12502]
[1728488260597,16.83,142.61,142.59,3.5091]
[1728488260795,16.83,142.61,142.55,0.12502]
[1728488261102,16.83,142.61,142.59,3.509]
[1728488261399,16.83,142.61,142.55,0.12502]
[1728488261400,26.24582121,142.63,142.55,0.12502]
[1728488261700,29.75412121,142.63,142.6,3.5089]
[1728488263095,0.50212,142.67,142.57,1.446]
[1728488263096,5.9,142.64,142.57,1.446]
[1728488263300,9.39627212,142.64,142.58,1.3963]
[1728488263499,12.90437212,142.64,142.61,3.5086]
[1728488263702,9.4081,142.64,142.58,1.3963]
[1728488264702,16.83,142.65,142.58,1.3963]
[1728488264902,16.83,142.65,142.63,3.508]
[1728488265803,20.3378,142.65,142.62,3.5083]
[1728488267595,20.3378,142.65,142.63,3.508]
[1728488268308,3.5079,142.64,142.62,3.5083]
[1728488269698,16.83,142.65,142.58,7.2963]
[1728488269900,3.5082,142.63,142.58,7.2963]
[1728488270599,3.5082,142.63,142.61,3.5086]
[1728488271405,3.5082,142.63,142.58,7.2963]
[1728488271801,3.5082,142.63,142.6,3.5087]
[1728488272003,3.5085,142.62,142.6,3.5087]
[1728488272411,16.83,142.63,142.59,3.5089]
[1728488273104,3.5087,142.61,142.59,3.5089]
[1728488273501,3.5087,142.61,142.58,4.9055]
[1728488273707,3.509,142.6,142.58,1.3963]
[1728488273906,16.83,142.63,142.58,4.9055]
[1728488274115,22.59,142.63,142.58,1.3963]
[1728488274318,26.0983,142.63,142.58,1.3963]
[1728488274519,9.2683,142.63,142.58,1.3963]
[1728488275116,9.2683,142.63,142.61,3.5085]
[1728488275611,5.76,142.63,142.58,1.3963]
[1728488275815,3.5081,142.64,142.58,1.3963]
[1728488276211,3.5081,142.64,142.62,3.5083]
[1728488277214,16.83,142.65,142.62,3.5083]
[1728488277519,20.3378,142.65,142.63,3.508]
[1728488278021,3.5084,142.63,142.6,3.5088]
[1728488278223,16.83,142.65,142.6,3.5088]
[1728488278424,16.83,142.63,142.58,1.3963]
[1728488278625,3.5086,142.62,142.6,3.5089]
[1728488278828,16.83,142.63,142.6,3.5089]
[1728488279717,20.3383,142.63,142.6,3.5089]
[1728488281330,16.83,142.63,142.6,3.5089]
[1728488281526,3.5084,142.62,142.6,3.5089]
[1728488281920,20.3383,142.63,142.61,3.5086]
[1728488282124,16.83,142.63,142.58,1.3963]